lending/lending_fUSD_20240705
["ID","MTS","AMOUNT","RATE_DAILY","PERIOD"]
[331297609,1720197038657,-150.83,0.0002298,2]
[331297610,1720197038667,-150.83,0.0002298,2]
[331297611,1720197038677,-150.83,0.0002298,2]
[331297612,1720197038688,-150.83,0.0002298,2]
[331297613,1720197038698,-150.83,0.0002298,2]
[331297614,1720197038708,-150.83,0.0002298,2]
[331297615,1720197038718,-198.00670023,0.0002298,2]
[331297616,1720197038728,-150.83,0.0002298,2]
[331297617,1720197038738,-150.83,0.0002298,2]
[331297618,1720197038749,-150.83,0.0002298,2]
[331297619,1720197038758,-150.83,0.0002298,2]
[331297620,1720197038768,-150.83,0.0002298,2]
[331297621,1720197038778,-150.83,0.0002298,2]
[331297622,1720197038788,-150.83,0.0002298,2]
[331297623,1720197038797,-150.83,0.0002298,2]
[331297624,1720197038807,-150.83,0.0002298,2]
[331297625,1720197038817,-150.83,0.0002298,2]
[331297626,1720197038827,-150.83,0.0002298,2]
[331297627,1720197038837,-150.83,0.0002298,2]
[331297628,1720197038847,-150.83,0.0002298,2]
[331297629,1720197038856,-150.83,0.0002298,2]
[331297630,1720197038866,-150.83,0.0002298,2]
[331297631,1720197038878,-150.83,0.0002298,2]
[331297632,1720197038887,-150.83,0.0002298,2]
[331297633,1720197038897,-150.83,0.0002298,2]
[331297634,1720197038907,-150.83,0.0002298,2]
[331297635,1720197038916,-150.83,0.0002298,2]
[331297636,1720197038926,-150.83,0.0002298,2]
[331297637,1720197038935,-150.83,0.0002298,2]
[331297638,1720197038944,-768.8294806,0.00022984,2]
[331297639,1720197038954,-543.8949467,0.00022984,2]
[331297640,1720197038964,-1242.4125884,0.00022984,2]
[331297641,1720197038974,-324.472656,0.00022984,2]
[331297642,1720197038984,-15628.6011023,0.00022984,2]
[331297643,1720197038994,-431216.18447042,0.0002299,5]
[331297644,1720197039007,-376.28217556,0.0002299,5]
[331297646,1720197039019,-595.5625,0.0002299,5]
[331297658,1720197039147,-371.6925449,0.0002299,5]
[331297661,1720197039161,-1800.0,0.0002299,5]
[331297663,1720197039174,-300.0,0.0002299,5]
[331297665,1720197039187,-707.07731665,0.0002299,5]
[331297667,1720197039200,-629.99914214,0.0002299,5]
[331297669,1720197039213,-311.75118799,0.0002299,5]
[331297672,1720197039225,-226619.1439041,0.0002299,5]
[331297779,1720197040330,-1131.70000001,0.00018962,2]
[331297781,1720197040342,-6143.0115967,0.00018962,2]
[331297784,1720197040355,-250.39418971,0.00018962,2]
[331297786,1720197040369,-808.09879146,0.00018962,2]
[331297788,1720197040381,-365.46821482,0.0002,2]
[331297790,1720197040392,-23.5650217,0.0002,2]
[331297792,1720197040402,-389.03323652,0.0002,2]
[331297794,1720197040412,-389.03323652,0.00020068,2]
[331297796,1720197040424,-389.03323652,0.00020068,2]
[331297798,1720197040437,-500.0,0.00022869,2]
[331297800,1720197040449,-500.0,0.00022869,2]
[331297802,1720197040459,-500.0,0.00022869,2]
[331297804,1720197040470,-500.0,0.00022869,2]
[331297806,1720197040480,-500.0,0.00022869,2]
[331297807,1720197040491,-500.0,0.00022869,2]
[331297810,1720197040501,-500.0,0.00022869,2]
[331297811,1720197040512,-500.0,0.00022869,2]
[331297813,1720197040525,-4719.99002681,0.0002299,5]
[331297821,1720197040591,-389.03323652,0.00020068,2]
[331297823,1720197040602,-389.03323652,0.00020068,2]
[331297825,1720197040612,-10634.42311684,0.0002299,5]
[331297827,1720197040631,-1275.15327242,0.0002299,5]
[331297830,1720197040643,-14978.44992166,0.0002299,5]
[331297832,1720197040655,-4883.23432975,0.0002299,5]
[331297834,1720197040667,-510.12408001,0.0002299,5]
[331297836,1720197040680,-12774.27413684,0.0002299,5]
[331297927,1720197041822,-389.03323652,0.00020068,2]
[331297928,1720197041831,-389.03323652,0.00020068,2]
[331297929,1720197041841,-389.03323652,0.00020068,2]
[331297930,1720197041850,-389.03323652,0.00020068,2]
[331297931,1720197041860,-389.03323652,0.00020068,2]
[331297932,1720197041872,-5990.61762127,0.00020078,2]
[331297966,1720197042472,-193.62934922,0.00015399,2]
[331297968,1720197042482,-5411.73065078,0.00020078,2]
[331297970,1720197042494,-24036.10672795,0.00020078,2]
[331297972,1720197042519,-389.03323652,0.00020133,2]
[331297974,1720197042532,-389.03323652,0.00020133,2]
[331297976,1720197042543,-389.03323652,0.00020941,2]
[331297978,1720197042553,-389.03323652,0.00020941,2]
[331297980,1720197042564,-389.03323652,0.00020941,2]
[331297982,1720197042573,-389.03323652,0.0002136,2]
[331297984,1720197042583,-389.03323652,0.00021821,2]
[331297986,1720197042593,-389.03323652,0.0002199,2]
[331297988,1720197042602,-1142.0,0.00022787,2]
[331297990,1720197042612,-7500.0,0.0002279,2]
[331297992,1720197042626,-20894.36259375,0.0002299,5]
[331297994,1720197042639,-299.58929,0.0002299,5]
[331297996,1720197042650,-280.34733126,0.0002299,5]
[331297999,1720197042661,-807.73443717,0.0002299,5]
[331298001,1720197042673,-2832.41511799,0.0002299,5]
[331298003,1720197042684,-425.16768456,0.0002299,5]
[331298305,1720197046683,-389.03323652,0.00022182,2]
[331298306,1720197046694,-389.03323652,0.00022182,2]
[331298308,1720197046704,-22.83400687,0.0002219,2]
[331298310,1720197046717,-366.19922965,0.0002219,2]
[331298312,1720197046727,-389.03323652,0.0002219,2]
[331298313,1720197046737,-389.03323652,0.00022389,2]
[331298314,1720197046747,-389.03323652,0.00022394,2]
[331298315,1720197046758,-389.03323652,0.00022394,2]
[331298316,1720197046768,-389.03323652,0.00022456,2]
[331298317,1720197046779,-389.03323652,0.00022456,2]
[331298318,1720197046789,-389.03323652,0.00022456,2]
[331298319,1720197046799,-500.0,0.00022869,2]
[331298321,1720197046809,-500.0,0.00022869,2]
[331298322,1720197046818,-500.0,0.00022869,2]
[331298323,1720197046828,-162.09000773,0.00022985,2]
[331298324,1720197046838,-4464.82660764,0.00022985,2]
[331298325,1720197046848,-1383.95848256,0.0002299,5]
[331298326,1720197046861,-6014.99120051,0.0002299,5]
[331298328,1720197047360,-389.03323652,0.00022456,2]
[331298329,1720197047371,-63975.57624006,0.0002299,5]
[331298330,1720197047389,-655.16092701,0.0002299,5]
[331298336,1720197048749,-633.56217276,0.0002299,5]
[331298337,1720197048762,-345.30254868,0.0002299,5]
[331298338,1720197048773,-930.552031,0.0002299,5]
[331298344,1720197055586,-608.40050944,0.00016172,2]
[331298346,1720197055596,-630.74011,0.00018962,2]
[331298348,1720197055606,-366.19666682,0.00019565,2]
[331298350,1720197055615,-90.16513658,0.00020078,2]
[331298369,1720197057243,-1572.83486342,0.00020078,2]
[331298371,1720197057252,-500.0,0.000221,8]
[331298373,1720197057262,-152.9,0.00022177,2]
[331298375,1720197057271,-1000.0,0.000222,8]
[331298377,1720197057281,-22988.43,0.00022453,2]
[331298379,1720197057290,-389.03323652,0.00022483,2]
[331298381,1720197057300,-389.03323652,0.00022676,2]
[331298383,1720197057309,-389.03323652,0.00022676,2]
[331298385,1720197057319,-389.03323652,0.00022676,2]
[331298387,1720197057328,-389.03323652,0.00022676,2]
[331298389,1720197057341,-389.03323652,0.00022676,2]
[331298391,1720197057352,-389.03323652,0.00022676,2]
[331298393,1720197057361,-389.03323652,0.00022676,2]
[331298395,1720197057371,-389.03323652,0.00022676,2]
[331298398,1720197057392,-389.03323652,0.00022676,2]
[331298401,1720197057408,-389.03323652,0.00022676,2]
[331298404,1720197057427,-389.03323652,0.00022676,2]
[331298407,1720197057446,-389.03323652,0.00022676,2]
[331298409,1720197057463,-389.03323652,0.00022676,2]
[331298412,1720197057480,-389.03323652,0.00022676,2]
[331298415,1720197057500,-389.03323652,0.00022676,2]
[331298418,1720197057517,-389.03323652,0.00022676,2]
[331298420,1720197057536,-389.03323652,0.00022676,2]
[331298423,1720197057553,-389.03323652,0.00022676,2]
[331298425,1720197057572,-389.03323652,0.00022676,2]
[331298428,1720197057591,-389.03323652,0.00022676,2]
[331298430,1720197057605,-1029.0,0.0002299,2]
[331298433,1720197057623,-50168.31800085,0.0002299,5]
[331298434,1720197057640,-506.92854763,0.0002299,5]
[331298435,1720197057659,-520.38152683,0.0002299,5]
[331298438,1720197057811,-252.80408456,0.00022681,2]
[331298441,1720197057829,-136.22915196,0.00022681,2]
[331298443,1720197057844,-17994.64284803,0.0002299,5]
[331298882,1720197185760,500.0,0.00011199,2]
[331298885,1720197186468,500.0,0.00011199,2]
[331298886,1720197187005,500.0,0.00011199,2]
[331298887,1720197187422,500.0,0.00011199,2]
[331298888,1720197187790,500.0,0.00011199,2]
[331298889,1720197188166,500.0,0.00011199,2]
[331298890,1720197188512,500.0,0.00011199,2]
[331298891,1720197188877,500.0,0.00011199,2]
[331298892,1720197189267,500.0,0.00011199,2]
[331298893,1720197189973,660.0,0.00011199,2]
[331298910,1720197234530,3074.42673232,0.00011199,2]
[331298925,1720197262434,209.88875444,0.00011199,10]
[331298927,1720197272178,105697.2675834,0.00011199,2]
[331298933,1720197317252,1708.5,0.00011199,2]
[331298936,1720197327004,1169.048298,0.00011199,2]
[331298937,1720197329761,946.68077921,0.00011199,2]
[331298939,1720197337990,1131.53749588,0.00011199,2]
[331298944,1720197348702,1069.67493178,0.00011199,2]
[331298948,1720197362301,955.9732708,0.00011199,2]
[331298950,1720197371155,978.16242731,0.00011199,2]
[331298952,1720197373716,1402.4806158,0.00011199,7]
[331298955,1720197387218,860.17499323,0.00011199,2]
[331298957,1720197390276,1019.95118513,0.00011199,2]
[331298959,1720197404590,518.63271752,0.00011199,2]
[331298964,1720197421092,262.49689379,0.00011199,2]
[331298967,1720197429100,496.65211333,0.00011199,2]
[331298968,1720197430143,534.19365946,0.00011199,2]
[331298972,1720197450224,439.94982301,0.00011199,2]
[331298974,1720197452508,246.8964863,0.00011199,2]
[331298976,1720197462065,500.0,0.00011199,2]
[331298977,1720197463918,271.97752949,0.00011199,2]
[331298979,1720197468058,604.78351958,0.00011199,2]
[331298981,1720197471392,403.4503373,0.00011199,2]
[331298983,1720197477422,202.25757491,0.00011199,2]
[331298984,1720197480391,346.55980804,0.00011199,2]
[331298986,1720197490246,155.0,0.00011199,2]
[331298990,1720197498875,5400.64147753,0.000112,2]
[331298992,1720197505771,486.61414226,0.00011199,2]
[331298994,1720197512052,217.90047204,0.00011199,2]
[331298997,1720197529316,296.77788761,0.00011199,2]
[331299001,1720197543071,196.43586911,0.00011199,2]
[331299002,1720197543534,366.58364766,0.00011199,2]
[331299003,1720197545111,1048.92984428,0.00011199,2]
[331299005,1720197554706,227.17477303,0.00011199,2]
[331299007,1720197555954,300.51199197,0.00011199,2]
[331299027,1720197660387,774.92376784,0.00011199,2]
[331299030,1720197677522,1402.4806158,0.00011199,7]
[331299033,1720197690595,1884.50257,0.00011,2]
[331299041,1720197742512,-1000.0,0.00027,120]
[331299042,1720197742666,-1000.0,0.00028,120]
[331299043,1720197742981,-1000.0,0.00029,120]
[331299044,1720197743008,-637.0,0.0003,120]
[331299045,1720197743372,-363.0,0.0003,120]
[331299046,1720197743405,-637.0,0.00031,120]
[331299053,1720197787631,438.35174148,0.00011199,2]
[331299062,1720197828491,1000.0,0.00029,120]
[331299066,1720197850076,1000.0,0.00028,120]
[331299068,1720197855170,1000.0,0.00027,120]
[331299085,1720197964654,1402.4806158,0.00011199,7]
[331299087,1720197974444,346.43618517,0.00011199,2]
[331299088,1720197975420,533.5029293,0.00011199,2]
[331299135,1720198232992,-591.23,0.00011542,2]
[331299137,1720198233002,-160.27755314,0.000116,2]
[331299139,1720198233012,-330.75400541,0.000118,2]
[331299141,1720198233023,-8.19416427,0.000118,2]
[331299143,1720198233034,-487.82497807,0.0001251,2]
[331299144,1720198233044,-1305.53734535,0.0001251,2]
[331299146,1720198233054,-250.0,0.00012971,2]
[331299148,1720198233064,-150.0,0.00013348,2]
[331299150,1720198233074,-300.0,0.0001339,2]
[331299151,1720198233084,-8813.13399231,0.00013391,2]
[331299152,1720198233096,-719.56763967,0.00013391,2]
[331299153,1720198233107,-269.0000005,0.00013391,2]
[331299154,1720198233134,-1231.85132041,0.00013391,2]
[331299155,1720198233146,-311.84172578,0.00013391,2]
[331299156,1720198233158,-833.36001832,0.00013391,2]
[331299157,1720198233172,-537.12016184,0.00013391,2]
[331299159,1720198236865,-2367.38584379,0.00013391,2]
[331299160,1720198236877,-415.09721781,0.00013391,2]
[331299161,1720198236889,-308.807424,0.00013391,2]
[331299162,1720198236901,-1711.35465557,0.00013391,2]
[331299163,1720198236911,-200.0,0.0001341,2]
[331299164,1720198236921,-734.82,0.0001341,2]
[331299165,1720198236934,-250.0,0.00013445,2]
[331299166,1720198236946,-543.89828898,0.00013474,2]
[331299167,1720198236958,-4057.32454602,0.00013474,2]
[331299178,1720198245872,-791.62550568,0.00013474,2]
[331299314,1720198247327,-2371.9,0.00013474,2]
[331299320,1720198247383,-8153.98965932,0.00013474,2]
[331299322,1720198247393,-1000.0,0.00013698,2]
[331299324,1720198247403,-2727.24,0.00013699,2]
[331299326,1720198247412,-1351.59,0.00013699,2]
[331299328,1720198247422,-1500.0,0.00013699,5]
[331299330,1720198247431,-400.0,0.000137,5]
[331299332,1720198247448,-510.71943796,0.000138,5]
[331299336,1720198247481,-289.28056204,0.000138,5]
[331299338,1720198247491,-235.81114598,0.00013805,2]
[331299341,1720198247503,-355.41885402,0.00013805,2]
[331299361,1720198247650,-281.7,0.00013811,2]
[331299364,1720198247662,-299.34540704,0.0001389,2]
[331299367,1720198247673,-220.33,0.0001389,3]
[331299371,1720198247683,-953.4433,0.000139,2]
[331299373,1720198247697,-1300.0,0.000139,5]
[331299374,1720198247707,-163.87622134,0.00013918,2]
[331299377,1720198247717,-2000.0,0.00013973,3]
[331299379,1720198247727,-585.63,0.0001399,3]
[331299380,1720198247738,-189.03632988,0.0001399,2]
[331299383,1720198247748,-1635.38329716,0.00013994,2]
[331299384,1720198247759,-179.77556321,0.00013994,2]
[331299385,1720198247769,-260.14667352,0.00013999,2]
[331299386,1720198247780,-500.0,0.00013999,2]
[331299387,1720198247790,-500.0,0.00013999,2]
[331299388,1720198247800,-500.0,0.00013999,2]
[331299389,1720198247810,-195.86055005,0.00013999,2]
[331299390,1720198247819,-193.29265507,0.00013999,2]
[331299391,1720198247829,-28013.50770673,0.00014,2]
[331299537,1720198249228,-933.64644029,0.00013598,2]
[331299539,1720198249237,-41514.75421868,0.00014,2]
[331299721,1720198648448,613.02560445,0.00011199,2]
[331299725,1720198666948,259.08929058,0.00011199,2]
[331299732,1720198717044,97511.82674021,0.00011199,2]
[331299742,1720198771588,100000.0,0.00025,60]
[331299835,1720199435606,-300.0,0.000137,5]
[331299836,1720199435616,-359.47,0.000138,5]
[331299844,1720199437793,-240.53,0.000138,5]
[331299846,1720199437803,-150.0,0.00013899,2]
[331299847,1720199437814,-300.0,0.00013899,2]
[331299849,1720199437824,-215.6511,0.000139,2]
[331299851,1720199437834,-167.27843963,0.000139,2]
[331299853,1720199437843,-797.23573547,0.000139,2]
[331299855,1720199437855,-6146.48951476,0.000139,2]
[331299856,1720199437984,-630.05082092,0.000139,2]
[331299857,1720199437997,-328.559,0.000139,2]
[331299858,1720199438010,-7423.29342885,0.000139,2]
[331299859,1720199438021,-1207.665,0.000139,2]
[331299860,1720199438031,-893.08502989,0.000139,2]
[331299861,1720199438041,-1499.10135573,0.000139,2]
[331299862,1720199438051,-900.0,0.000139,5]
[331299863,1720199438061,-163.87622134,0.000139,2]
[331299864,1720199438070,-4243.77125524,0.000139,2]
[331299865,1720199438083,-1033.79724476,0.000139,2]
[331299866,1720199438092,-405.07803286,0.000139,2]
[331299867,1720199438103,-1082.17917477,0.000139,2]
[331299868,1720199438115,-346.7403356,0.000139,2]
[331299871,1720199438229,-298.4616193,0.000139,2]
[331299873,1720199438238,-159.52704915,0.000139,2]
[331299875,1720199438248,-76.99711747,0.000139,2]
[331299877,1720199438263,-335.125,0.000139,2]
[331300180,1720199444738,-260.0629704,0.000139,2]
[331300181,1720199444759,-193.36121516,0.000139,2]
[331300182,1720199444782,-865.54630303,0.000139,2]
[331300183,1720199444791,-388.83602839,0.0001396,2]
[331300184,1720199444801,-189.03632989,0.0001399,2]
[331300185,1720199444811,-4019.68863277,0.00014,2]
[331300230,1720199445757,-1780.95012414,0.00014,2]
[331300234,1720199445770,-1325.47695293,0.00014,2]
[331300236,1720199445782,-1174.31752417,0.00014,2]
[331300297,1720199447076,-383.11639972,0.00014,2]
[331300318,1720199447196,-20716.54288691,0.00014,2]
[331300321,1720199447208,-882.1746128,0.00014,2]
[331300342,1720199447413,-82007.78657697,0.00014,2]
[331300344,1720199447425,-11582.50964721,0.00014,2]
[331300347,1720199447438,-3399.39625553,0.00014,2]
[331300349,1720199447450,-16756.76840395,0.00014,2]
[331300350,1720199447461,-3250.57147,0.00014,2]
[331300351,1720199447472,-1260.99967305,0.00014,2]
[331300352,1720199447492,-762100.88581976,0.00014,2]
[331300353,1720199447507,-1532.24105838,0.00014,2]
[331300354,1720199447520,-629.27928532,0.00014,2]
[331300355,1720199447531,-429.75631163,0.00014,2]
[331300356,1720199447543,-408.48752001,0.00014,2]
[331300357,1720199447555,-528.10219772,0.00014,2]
[331300358,1720199447568,-415.30294926,0.00014,2]
[331300359,1720199447581,-1692.20876631,0.00014,2]
[331300360,1720199447695,-340670.94821133,0.00014,2]
[331300361,1720199447706,-597.71700003,0.00014,2]
[331300362,1720199447718,-450.59466083,0.00014,2]
[331300363,1720199447730,-1687.01540029,0.00014,2]
[331300364,1720199447741,-281.0,0.00014,2]
[331300365,1720199447764,-313.64201979,0.00014,2]
[331300402,1720200492579,1630.1845532,0.00011199,2]
[331300403,1720200579032,296.12007945,0.00011199,2]
[331300410,1720200636428,-359.16532702,0.00013028,2]
[331300411,1720200636441,-2012.73467298,0.00013028,2]
[331300412,1720200636452,-282.5,0.00013028,2]
[331300413,1720200636462,-292.54231197,0.00013574,2]
[331300414,1720200636473,-197.4133863,0.00013574,2]
[331300416,1720200636485,-337.47047263,0.0001386,2]
[331300419,1720200636498,-1377.97952737,0.0001386,2]
[331300421,1720200636507,-159.52704912,0.000139,2]
[331300423,1720200636517,-322.57961181,0.000139,2]
[331300425,1720200636527,-544.76386976,0.00013989,2]
[331300427,1720200636537,-185.46399961,0.0001399,2]
[331300429,1720200636548,-300.0,0.00013999,2]
[331300430,1720200636568,-9045.50994237,0.00014,2]
[331300431,1720200636746,-12828.9258431,0.00014,2]
[331300432,1720200636759,-1305.53734535,0.00014,2]
[331300548,1720200638119,-193.62934922,0.00012302,2]
[331300549,1720200638129,-3739.35065078,0.00014,2]
[331300550,1720200638141,-309.44,0.00014,2]
[331300745,1720200641841,-5198.16634652,0.00014,2]
[331300748,1720200641864,-480.92969916,0.00014,2]
[331300749,1720200641879,-407.82671285,0.00014,2]
[331300750,1720200641892,-696.37678912,0.00014,2]
[331300751,1720200641904,-443.23700073,0.00014,2]
[331300752,1720200641916,-354.23871741,0.00014,2]
[331300753,1720200642227,-447.65499998,0.00014,2]
[331300754,1720200642240,-3027.95925375,0.00014,2]
[331300755,1720200642252,-3140.04385146,0.00014,2]
[331300756,1720200642264,-2930.71735568,0.00014,2]
[331300757,1720200642277,-3364.40583425,0.00014,2]
[331300758,1720200642540,-2868.43341692,0.00014,2]
[331300761,1720200642552,-79635.24547634,0.00014,2]
[331301157,1720200646560,-527.46202022,0.00014,2]
[331301160,1720200646572,-276.03969957,0.00014,2]
[331301162,1720200646584,-28032.38085577,0.00014,2]
[331301164,1720200646595,-1757.24990833,0.00014,2]
[331301166,1720200646607,-4526.756931,0.00014,2]
[331301169,1720200646619,-21277.02201902,0.00014,2]
[331301171,1720200646631,-284.37261,0.00014,2]
[331301173,1720200646642,-287828.69670649,0.00014,2]
[331301175,1720200646654,-641.5247125,0.00014,2]
[331301178,1720200646670,-667.35,0.00014,2]
[331301232,1720200647583,-361.6920653,0.00014,2]
[331301246,1720200650614,-196.21,0.00013712,2]
[331301247,1720200650624,-882.88935092,0.00014,2]
[331301248,1720200650637,-5693.59880712,0.00014,2]
[331301249,1720200650649,-5689.74290309,0.00014,2]
[331301250,1720200650661,-255.99257949,0.00014,2]
[331301251,1720200868830,496.5312,0.000118,2]
[331301252,1720200892513,-857.2898,0.00012214,2]
[331301253,1720200936249,164.51115525,0.00012214,2]
[331301254,1720200939915,300.51199197,0.00012214,2]
[331301255,1720201025620,155.0,0.00012214,2]
[331301256,1720201045609,499.68705278,0.00012214,2]
[331301257,1720201084744,673.93,0.00011534,2]
[331301258,1720201107597,3561.29548115,0.000112,2]
[331301260,1720201176089,155.0,0.000112,2]
[331301262,1720201255235,168.56,0.00010425,2]
[331301265,1720201281881,155.0,0.000112,2]
[331301266,1720201288422,2863.3786862,0.00011199,2]
[331301267,1720201288444,10000.0,0.00011199,2]
[331301268,1720201288466,10000.0,0.00011199,2]
[331301269,1720201288498,10000.0,0.00011199,2]
[331301270,1720201288806,10000.0,0.00011199,2]
[331301271,1720201288834,10000.0,0.00011199,2]
[331301272,1720201288859,10000.0,0.00011199,2]
[331301273,1720201288882,10000.0,0.00011199,2]
[331301274,1720201288909,10000.0,0.00011199,2]
[331301275,1720201288932,10000.0,0.00011199,2]
[331301276,1720201288957,10000.0,0.00011199,2]
[331301277,1720201288988,10000.0,0.00011199,2]
[331301278,1720201289014,10000.0,0.00011199,2]
[331301279,1720201289040,10000.0,0.00011199,2]
[331301280,1720201289064,7126.08327379,0.00011199,2]
[331301282,1720201381755,155.0,0.00011199,2]
[331301284,1720201436342,2718.91672621,0.00011199,2]
[331301285,1720201437066,10000.0,0.00011199,2]
[331301286,1720201437391,10000.0,0.00011199,2]
[331301287,1720201437422,10000.0,0.00011199,2]
[331301288,1720201437449,10000.0,0.00011199,2]
[331301289,1720201437478,10000.0,0.00011199,2]
[331301290,1720201437503,10000.0,0.00011199,2]
[331301291,1720201437534,10000.0,0.00011199,2]
[331301292,1720201437558,10000.0,0.00011199,2]
[331301293,1720201437586,10000.0,0.00011199,2]
[331301294,1720201437616,143085.23162151,0.00011199,2]
[331301295,1720201456138,833.28128399,0.00011199,2]
[331301296,1720201459256,45127.69515428,0.00011199,2]
[331301297,1720201464302,702.49402152,0.00011199,2]
[331301298,1720201483569,155.0,0.00011199,2]
[331301299,1720201491307,10994.48154505,0.00011199,2]
[331301300,1720201496745,155.0,0.00011199,2]
[331301301,1720201502666,445.0,0.00011199,2]
[331301302,1720201516261,169.15913638,0.00011199,2]
[331301303,1720201520401,1286.69398204,0.00011199,7]
[331301304,1720201556882,91752.04856461,0.00011199,2]
[331301305,1720201557445,3905.35539231,0.00011199,2]
[331301306,1720201585658,3890.27902785,0.00011199,2]
[331301307,1720201592122,212.06693148,0.00011199,2]
[331301308,1720201607520,3026.21301367,0.00011199,2]
[331301309,1720201608838,600.0,0.00011199,2]
[331301310,1720201631149,1386.48863471,0.00011199,2]
[331301312,1720201658470,671.53,0.00010799,2]
[331301313,1720201666137,527.04753133,0.00011199,2]
[331301314,1720201687458,10994.48154505,0.00011199,2]
[331301315,1720201774711,666.71871601,0.00011199,2]
[331301318,1720201792526,180.42,0.00010112,2]
[331301319,1720201811947,328.85804811,0.00011199,2]
[331301320,1720201833925,7846.50313688,0.00011199,2]
[331301321,1720201834934,171.05,0.00010076,2]
[331301322,1720201835161,-1800.0,0.00012114,2]
[331301325,1720201835173,-49.9685,0.00012114,2]
[331301326,1720201835186,-165.05511883,0.00012214,2]
[331301328,1720201835196,-184.90396962,0.00012273,2]
[331301329,1720201835206,-290.2724116,0.00012273,2]
[331301332,1720201835218,-15.22112567,0.00012273,2]
[331301333,1720201835228,-205.36559528,0.00012273,2]
[331301334,1720201835238,-284.79943484,0.00012302,2]
[331301335,1720201835250,-63.13835982,0.00012302,2]
[331301336,1720201835259,-217.87188322,0.00012302,2]
[331301337,1720201835269,-607.04569346,0.00012302,2]
[331301338,1720201835278,-155.0,0.00012314,2]
[331301339,1720201835288,-659.47,0.0001251,2]
[331301340,1720201835297,-250.0,0.00012637,2]
[331301341,1720201835307,-1000.0,0.00012655,2]
[331301342,1720201835316,-1171.64,0.0001273,2]
[331301343,1720201835325,-250.0,0.00012825,2]
[331301344,1720201835334,-150.32,0.00012841,2]
[331301345,1720201835343,-256.64,0.00012945,2]
[331301346,1720201835354,-150.32,0.00013008,2]
[331301347,1720201835362,-671.53,0.00013063,2]
[331301348,1720201835372,-1500.0,0.00013128,2]
[331301349,1720201835381,-150.32,0.00013175,2]
[331301350,1720201835390,-167.57,0.00013183,2]
[331301351,1720201835399,-150.0,0.00013229,2]
[331301352,1720201835410,-150.32,0.00013343,2]
[331301353,1720201835419,-15042.0,0.00013448,2]
[331301354,1720201835429,-3706.2994415,0.00013472,2]
[331301355,1720201835442,-331.9629089,0.00013472,2]
[331301356,1720201835452,-833.79793316,0.00013472,2]
[331301357,1720201835463,-318.86689986,0.00013472,2]
[331301358,1720201835474,-641.43342479,0.00013472,2]
[331301359,1720201835485,-1640.70645971,0.00013472,2]
[331301360,1720201835495,-1386.16661453,0.00013472,2]
[331301361,1720201835504,-130.43302075,0.00013472,2]
[331301362,1720201835515,-554.6317536,0.00013472,2]
[331301363,1720201835524,-202.25757491,0.00013472,2]
[331301364,1720201835533,-150.32,0.0001351,2]
[331301365,1720201835543,-155.10759368,0.00013543,2]
[331301366,1720201835552,-690.00328514,0.00013543,2]
[331301367,1720201835561,-150.0,0.00013573,2]
[331301368,1720201835570,-661.95788384,0.00013574,2]
[331301369,1720201835581,-826.29867666,0.00013574,2]
[331301370,1720201836478,-329.01471858,0.00012273,2]
[331301371,1720201836487,-9691.43473626,0.00013574,2]
[331301372,1720201836496,-454.61,0.00013574,2]
[331301373,1720201836505,-956.95029332,0.00013574,2]
[331301374,1720201836515,-958.71675623,0.00013574,2]
[331301375,1720201836524,-22563.77710487,0.0001358,2]
[331301376,1720201836533,-1082.13,0.00013699,2]
[331301377,1720201836542,-150.0,0.00013728,2]
[331301378,1720201836663,-1164.88174319,0.00013736,2]
[331301379,1720201836673,-276.15184313,0.00013759,2]